Cogmind - Beta 15 @@@ ROGUE MODE // 2025.07.24 @ 05:30:52 Player: shapeshifter Result: Destroyed by YI-UF0 with YI-UF0's Doublenader Performance ------------- Evolutions (0) 0 Regions Visited (2) 400 Robots Destroyed (21) 105 Value Destroyed (380) 380 Prototype IDs (0) 0 Alien Tech Used (0) 0 Bonus (0) 0 TOTAL SCORE: 885 Bonus ------- None Cogmind --------- Core Integrity 0/250 Matter 275/300 Energy 100/100 System Corruption 0% Temperature Cool (0) Movement Rolling (130) Ox2 Location -10/Mines Parts ------- > --- POWER (1) -------- (None) > --- PROPULSION (2) --- Compact Wheel > --- UTILITY (2) ------ Heat Sink High-capacity Storage Unit > --- WEAPON (2) ------- (None) > --- INVENTORY (20) --- Ion Engine High-capacity Storage Unit Medium Matter Pod (0) Visual Processing Unit Improved Terrain Scanner Seismic Detector Core Shielding Light Armor Plating Peak State ------------ > --- POWER ------------ Ion Engine > --- PROPULSION ------- Light Treads Light Treads > --- UTILITY ---------- Small Storage Unit Seismic Detector > --- WEAPON ----------- Medium Laser Medium Laser > --- INVENTORY -------- Light Ion Engine Compact Wheel Compact Wheel Large Storage Unit Improved Terrain Scanner EM Pulse Gun Medium Laser Mining Laser [Rating: 8] Favorites ----------- Power Ion Engine Engine Ion Engine Propulsion Light Treads Treads Light Treads Leg Aluminum Leg Wheel Compact Wheel Utility High-capacity Storage Unit Device Seismic Detector Storage High-capacity Storage Unit Weapon Medium Laser Energy Gun Medium Laser Launcher Grenade Launcher Special Weapon Mining Laser Build | -11 -10 -10 ------- Run | Yrd Mat Min Slots Evolved . | . . . Power . | . . . Propulsion . | . . . Utility . | . . . Weapon . | . . . Parts Attached 18 | 7 10 1 Power 2 | 1 1 . Engine 2 | 1 1 . Core . | . . . Reactor . | . . . Propulsion 5 | 2 3 . Treads 2 | 2 . . Leg 1 | . 1 . Wheel 2 | . 2 . Hover . | . . . Flight . | . . . Utility 5 | 2 3 . Device 2 | 1 1 . Storage 3 | 1 2 . Processor . | . . . Hackware . | . . . Protection . | . . . Artifact . | . . . Weapon 6 | 2 3 1 Energy Gun 4 | 2 2 . Energy Cannon . | . . . Ballistic Gun . | . . . Ballistic Cannon . | . . . Launcher 1 | . . 1 Special Weapon 1 | . 1 . Impact Weapon . | . . . Slashing Weapon . | . . . Piercing Weapon . | . . . Special Melee Weapon . | . . . Unidentified Prototypes . | . . . Parts Lost 10 | . 5 5 Power 2 | . 1 1 Propulsion 3 | . 2 1 Utility . | . . . Weapon 5 | . 2 3 Highest Loss Streak 5 | . 4 5 To Critical Strikes . | . . . Average Backups 8 | 3 8 8 Power . | . . 1 Propulsion 1 | 1 1 . Utility 4 | . 3 7 Weapon 1 | . 2 . Tool/Special . | . . . Unused Backups 7 | . 1 6 Power 1 | . . 1 Propulsion . | . . . Utility 6 | . 1 5 Weapon . | . . . Tool/Special . | . . . Average Slot Usage (%) 98 | . 97 100 Engine 13 | . 13 14 Treads 13 | . 18 . Leg 4 | . . 14 Wheel 9 | . 7 14 Device 14 | . 14 14 Storage 14 | . 14 14 Energy Gun 23 | . 26 14 Special Weapon 3 | . . 13 Peak Build Rating 8 | 7 8 8 Average Rating 7 | 5 7 7 On Entrance 5 | . 7 8 Naked Turns . | . . . Heaviest Build 50 | 15 50 49 Greatest Support 40 | 40 40 16 Greatest Overweight (x) 3 | . 3 3 Average Overweight (x) 1 | . 1 2 Largest Inventory Capacity 20 | 8 20 20 Average Capacity 16 | 7 16 20 Most Carried 12 | 6 12 9 Average Carried 8 | 3 8 8 Final Capacity 20 | 8 20 20 Final Carried 8 | 5 8 8 Class Distribution -------------------- 100% | Mutant Dominant Class ---------------- Mutant | -10/Materials Mutant | -10/Mines Resources | -11 -10 -10 ----------- Run | Yrd Mat Min Matter Collected 360 | 260 100 . Remotely . | . . . Salvage Created 614 | 105 509 . Parts 41 | 7 34 . Haulers Intercepted 1 | . 1 . Recyclers Shooed 1 | 1 . . Parts Field Recycled . | . . . Retrieved Matter . | . . . Parts Self-Destructed . | . . . Prevented . | . . . Kills | -11 -10 -10 ------- Run | Yrd Mat Min Combat Hostiles Destroyed 13 | . 13 . Guns 11 | . 11 . Classes Destroyed 7 | 2 5 . Worker 2 | . 2 . Tunneler 2 | 2 . . Hauler 1 | . 1 . Recycler 1 | 1 . . Watcher 2 | . 2 . Swarmer 6 | . 6 . Grunt 7 | . 7 . Best Kill Streak 6 | 3 6 . Combat Bots Only 5 | . 5 . Max Kills in Single Turn 1 | 1 1 . Gunslinging . | . . . Exploded . | . . . Melee . | . . . Uniques/NPCs Destroyed . | . . . Combat | -11 -10 -10 -------- Run | Yrd Mat Min Hostile Shots Fired 109 | . 95 14 Missed 18 | . 17 1 Hits 91 | . 78 13 Projectile 91 | . 78 13 AOE 14 | . . 14 Critical Strikes 1 | . 1 . Damage Taken 1271 | . 772 499 Core 257 | . 108 149 Absorbed by Shields . | . . . Core Remaining (%) 100 | 100 . . Volleys Fired 67 | 7 58 2 Largest 2 | 2 2 2 Hottest 100 | 100 100 70 Shots Fired 129 | 14 111 4 Gun 127 | 14 111 2 Cannon . | . . . Launcher 2 | . . 2 Special . | . . . Kinetic . | . . . Thermal 122 | 14 108 . Explosive 2 | . . 2 Electromagnetic 5 | . 3 2 Robot Hit Streak 6 | 4 6 1 Robot Miss Streak 4 | 3 4 1 Penetration Max . | . . . Secondary Targets 2 | . 2 . Max Gunslinging Chain 1 | . 1 . Shots Hit Robots 68 | 7 59 2 Core Hits 28 | 4 24 . Critical Kills . | . . . Critical Parts Destroyed . | . . . Critical Strikes 8 | . 8 . Burn 8 | . 8 . Melee Attacks . | . . . Impact . | . . . Slashing . | . . . Piercing . | . . . Sneak Attacks . | . . . Combat Hostiles . | . . . Follow-up Attacks . | . . . Damage Inflicted 892 | 88 788 16 Guns 876 | 88 788 . Cannons . | . . . Explosions 16 | . . 16 Melee . | . . . Ramming . | . . . Kinetic . | . . . Thermal 861 | 88 773 . Explosive 16 | . . 16 Electromagnetic 15 | . 15 . Impact . | . . . Slashing . | . . . Piercing . | . . . Highest Corruption . | . . . Average Corruption . | . . . Corruption Purged . | . . . Corruption Blocked . | . . . Overload Shots . | . . . Overflow Damage . | . . . Projectiles . | . . . Explosions . | . . . Melee . | . . . Knockbacks . | . . . Impact . | . . . Kinetic . | . . . Secondary . | . . . Self-Inflicted Damage 44 | . . 44 Shots 2 | . . 2 Rammed . | . . . Targets Rammed . | . . . Kicked . | . . . Crushed . | . . . Highest Temperature 429 | 78 429 . Average Temperature 106 | 37 115 . Received Heat Transfer 279 | . 279 . Effects 3 | . 3 . Shutdowns 1 | . 1 . Interference 1 | . 1 . Short Circuit 1 | . 1 . Siege Activations . | . . . Martial Activations . | . . . Shielding Activations . | . . . Robots Disrupted . | . . . Combat Hostiles . | . . . Robots Corrupted . | . . . Combat Hostiles . | . . . Parts Fried . | . . . Impact Corruptions . | . . . Robots Melted 2 | . 2 . Combat Hostiles 2 | . 2 . Parts Melted 6 | 1 5 . Heat Transferred 3145 | 259 2886 . Parts Sabotaged . | . . . Parts Stolen . | . . . Parts Stripped . | . . . Power Chain Reactions . | . . . Alert | -11 -10 -10 ------- Run | Yrd Mat Min Maximum Alert Level . | . . . Low Security (%) 100 | 100 100 100 Level 1 . | . . . Level 2 . | . . . Level 3 . | . . . Level 4 . | . . . Level 5 . | . . . High Security . | . . . Max Security . | . . . Peak Influence 105 | 5 105 9 Initial 7 | . . 7 Average 24 | 1 39 . Influence Increases 365 | 15 341 9 Destroy 0b10 Robot/C 260 | . 260 . Destroy 0b10 Robot/NC 40 | 15 25 . Destroy Leader 56 | . 56 . Destroy Structure 9 | . . 9 Influence Decreases 365 | 15 322 28 Entered New Map 12 | . . 12 Time Decay 294 | 15 272 7 Lost Part 59 | . 50 9 Squads Dispatched 1 | . 1 . Investigation . | . . . Extermination . | . . . Reinforcement 1 | . 1 . Assault . | . . . Garrison . | . . . Intercept . | . . . Searches Triggered . | . . . Construction Impeded . | . . . Haulers Reinforced . | . . . Active Scanning Responses . | . . . Cargo Convoy Interrupts . | . . . Stealth | -11 -10 -10 --------- Run | Yrd Mat Min Distress Signals 1 | . 1 . Communications Jammed . | . . . Distress Signals . | . . . Times Spotted 20 | . 18 2 Peak Tracking Total 3 | . 3 1 Tactical Retreats 1 | . . 1 Traps | -11 -10 -10 ------- Run | Yrd Mat Min Traps Triggered . | . . . Indirectly . | . . . Trap Hack Attempts . | . . . Triggered . | . . . Disarmed . | . . . Reprogrammed . | . . . Reused . | . . . Traps Extracted . | . . . Installed . | . . . Triggered . | . . . Machines | -11 -10 -10 ---------- Run | Yrd Mat Min Machines Disabled . | . . . Max in Single Turn . | . . . Machines Repaired . | . . . Machines Dismantled . | . . . Machines Sabotaged . | . . . Overloaded Fab Kills . | . . . Hacking | -11 -10 -10 --------- Run | Yrd Mat Min Machines Accessed 1 | . 1 . Terminals 1 | . 1 . Fabricators . | . . . Repair Stations . | . . . Recycling Units . | . . . Scanalyzers . | . . . Garrison Access . | . . . Total Hacks 2 | . 2 . Successful 1 | . 1 . Failed 1 | . 1 . Catastrophic . | . . . Database Lockouts . | . . . Manual 1 | . 1 . Terminals 2 | . 2 . Fabricators . | . . . Repair Stations . | . . . Recycling Units . | . . . Scanalyzers . | . . . Garrison Access . | . . . Terminal Hacks 1 | . 1 . Emergency Access Points 1 | . 1 . Fabricator Hacks . | . . . Repair Station Hacks . | . . . Recycling Unit Hacks . | . . . Scanalyzer . | . . . Garrison Access Hacks . | . . . Unauthorized Hacks . | . . . Terminals . | . . . Fabricators . | . . . Repair Stations . | . . . Recycling Units . | . . . Scanalyzers . | . . . Garrison Access . | . . . Data Cores Recovered . | . . . Used . | . . . Hacking Detections 1 | . 1 . Full Trace Events . | . . . Feedback Events . | . . . Feedback Blocked . | . . . Robot Schematics Acquired . | . . . Robots Built . | . . . Authchips . | . . . Time . | . . . Total Robot Build Rating . | . . . Part Schematics Acquired . | . . . Parts Built . | . . . Authchips . | . . . Time . | . . . Total Part Build Rating . | . . . Parts Repaired . | . . . Time . | . . . Parts Recycled . | . . . Recycled Matter . | . . . Retrieved Matter . | . . . Retrieved Components . | . . . Parts Scanalyzed . | . . . Part Schematics Acquired . | . . . Parts Damaged . | . . . Bothacking | -11 -10 -10 ------------ Run | Yrd Mat Min Used RIF Installer . | . . . Robots Hacked . | . . . Non-combat . | . . . Combat . | . . . Robot Hacks Applied . | . . . Relay Couplers Released . | . . . Fabnet Peak Effective % . | . . . Robots Rewired . | . . . Allies Hacked . | . . . Hacks Repelled . | . . . Allies | -11 -10 -10 -------- Run | Yrd Mat Min Total Allies . | . . . Largest Group . | . . . Highest-Rated Group . | . . . Highest-Rated Ally . | . . . Total Orders . | . . . Ally Attacks . | . . . Total Damage . | . . . Kills . | . . . Allies Corrupted . | . . . Allies Melted . | . . . Intel | -11 -10 -10 ------- Run | Yrd Mat Min Active Infowar (turns) 712 | 19 693 . Seismic 712 | 19 693 . Robot Analysis Total . | . . . Derelict Logs Recovered 1 | . . 1 Drone Launches . | . . . Drone Recoveries . | . . . Exploration | -11 -10 -10 ------------- Run | Yrd Mat Min Turns Passed 1237 | 151 770 316 Spaces Moved 622 | 81 371 170 Core 16 | 16 . . Treads 211 | 65 146 . Legs . | . . . Wheels 395 | . 225 170 Hover . | . . . Flight . | . . . Fastest Speed 50 | 50 130 130 Average Speed 141 | 138 147 130 Slowest Speed 160 | 160 160 145 Overloaded Moves . | . . . Propulsion Burnouts . | . . . Robots Hopped . | . . . Potential Cave-ins . | . . . Cave-ins Triggered . | . . . Exploration Rate (%) 39 | 5 74 38 Regions Visited 2 Branch Regions 1 Pre-discovered Areas 1 | . . 1 Known Exits Taken . | . . . Unknown Exits Taken 2 | 1 1 . Scrap Searched . | . . . Spaces Dug . | . . . Terrain Destroyed 19 | . . 19 Melee . | . . . Projectile . | . . . AOE 19 | . . 19 Terrain Rammed . | . . . Walls Destroyed . | . . . Machines Disabled . | . . . Actions | -11 -10 -10 --------- Run | Yrd Mat Min Total 849 | 106 484 259 Wait 112 | . 28 84 Move 620 | 80 370 170 Hop . | . . . Pick Up 25 | 12 12 1 Fast Attach . | . . . Attach 14 | 7 6 1 Detach . | . . . Swap 6 | . 5 1 Drop 5 | . 5 . Fire 67 | 7 58 2 Melee . | . . . Ram . | . . . Kick . | . . . Crush . | . . . Escape Stasis . | . . . Rewire . | . . . Trap . | . . . Miscellaneous . | . . . Route ------- -11/Scrapyard -10/Materials (discovered 2 exits: [*Mat] / [*Min]) -10/Mines History --------- Turn | Location | Event 7 | -11/Scrapyard | Discovered new exit (range 13) 152 | -11/Scrapyard | Entered Materials 316 | -10/Materials | Build established: Mutant 719 | -10/Materials | Discovered new exit (range 13) 827 | -10/Materials | Discovered new exit (range 16) 893 | -10/Materials | Lost 4 parts (2n2w) 922 | -10/Materials | Entered Mines 986 | -10/Mines | YI-UF0 nonchalantly dropped a Grenade Launcher on the ground 1012 | -10/Mines | Learned location of Zion (-6) 1229 | -10/Mines | Core integrity fell below 50% 1233 | -10/Mines | Core integrity fell below 20% 1238 | -10/Mines | Destroyed by YI-UF0 with YI-UF0's Doublenader Last Messages --------------- 00969_ YI-UF0 mumbles something. 00986_ YI-UF0 nonchalantly drops a Grenade Launcher on the ground. 00993_ K-01 Serf collects debris. 00994_ YI-UF0 mumbles something. 00994_ Acquired Grenade Launcher. 00996_ K-01 Serf collects debris. 01012_ Acquired derelict log, extracted data. World map updated: -6/Zion. 01015_ K-01 Serf collects debris. 01017_ T-07 Excavator is excavating. 01227_ The unstable cave ceiling collapses. 01228_ R-06 Scavenger collects Lgt. Ion Engine. 01230_ EM Pulse Gun destroyed. 01232_ Grenade Launcher destroyed. 01234_ Lgt. Ion Engine destroyed. 01235_ U-05 Engineer lays Concrete. 01236_ Mining Laser destroyed. 01237_ U-05 Engineer lays Concrete. 01238_ Aluminum Leg destroyed. Map ----- +----------------------------------------------------+ | ????????????????????????# #### ##?# ######## # | | ????????????????????????# #?# #??????# # | | ?????????????????????????? ### #??????# # | | ?????????????????????????????????# #??????# | | ?????????????????????????????????# #####?????## | | ??????????????????????????????## # #????????## | | ?????????????????????????????# #???????## | | ???????????????????????????## #??????## | | ??????????????????????????## ##?????# # | | ??????????????????#???##### #?????# # | | ??????????????????# ## # #?????# ## | | ?????????????????# # #?????# #? | | ?????????????????# ##????## ## | | ?????????????????# u ###????## # | | ?????????????????# ##?????## | | ?????????????????# ##????## | | ?????????????????# r ##????# | | ??????????????????# r #????# | | ????????????????????? # % # ##????## ## | | ??????????????????????? #?????#####?# | | ??????????????????????### # ###????????????# | | ?????????????????????## # #?????????????## | | ####?????????????????# #??####????????# | | ######????????????# ##### ##??????# | | #???????????## g ##????# | | "" #### #???????????# @ #???# | | "" #??# #????####???# ####### #??# | | "" #??# #???## ##??## #????# #??# | | ####??# ##### #?# ##????## ##??# | | ??????# #?# #??????####???# | | ??????#### """ #### ##?????????????# | | ?????????# """ #?# ###?????????????? | | ?????????## """ ### ######??????????????? | | ??????????## #???????????????????? | | ???????????## ######???????????????????? | | ????????????######????????????????????????????# ? | | ????????????????????????????????????????????????#? | | ?????????????????????????????????????????????????? | | ?????????????????????????????????????????????????? | | | | | | | | | | | | | | | | | | | | | | | +----------------------------------------------------+ Best States ------------- Heat Dissipation 35 Energy Generation 10 Energy Capacity 250 Matter Stores 300 Matter Capacity 300 Sight Range 16 Terrain Scan Density 10 Evasion (%) 50 Recoil Reduction 2 Item Schematics ----------------- None Robot Schematics ------------------ None Fabricated ------------ Nothing Repaired ---------- Nothing Alien Tech Used ----------------- None Achievements -------------- None Challenges ------------ None Game ------ Seed BombMiningReplica Manual? 0 Play Time 00:07:14 Cumulative 45.5 hours Start 2025.07.24 @ 05:24:51 End 2025.07.24 @ 05:30:52 Sessions 1 Manual Loads 0 Difficulty Rogue Special Mode None Game No. 112 Rogue 112 Adventurer 0 Explorer 0 Win Type - Total 0 Types 0/0/0/0/0/0/0/0/0/0 Lore% 38 Gallery% 37 Achievement% 30 Wizard Run 0 Options --------- Layout 1 ASCII 0 Keyboard 0 Movement Mouse Keybinds 0 Fullscreen 1 Font 24/Smallcaps Map View 50x35 Zoom Use 0% Tactical HUD 1 Map Filters NONE Filters NONE Steam 1 RUN: 6bcdbaed-e52d-4453-b181-f87db049686b